[Event "Titled Tuesday Blitz November 29 Late 2022"]
[White "Stanisz, Patryk"]
[Black "Arbunic Castro, Giovanna"]
[WhiteFideId "1123106"]
[BlackFideId "3400549"]
[WhiteElo "2069"]
[BlackElo "1936"]
[Result "1-0"]
[Round "08"]
[TimeControl "180+1"]
[Date "2022.11.30"]
[WhiteClock "0:00:11"]
[BlackClock "0:00:07"]

1. d4 {[%clk 0:03:00]}  Nf6 {[%clk 0:02:58]} 2. c4 {[%clk 0:03:01]}  g6 {[%clk 0:02:58]} 3. Nc3 {[%clk 0:03:01]}  Bg7 {[%clk 0:02:58]} 4. e4 {[%clk 0:03:01]}  d6 {[%clk 0:02:57]} 5. Be2 {[%clk 0:03:02]}  O-O {[%clk 0:02:57]} 6. g4 {[%clk 0:03:02]}  e5 {[%clk 0:02:56]} 7. d5 {[%clk 0:03:03]}  h6 {[%clk 0:02:50]} 8. h4 {[%clk 0:02:59]}  Nh7 {[%clk 0:02:49]} 9. Be3 {[%clk 0:02:54]}  f5 {[%clk 0:02:43]} 10. gxf5 {[%clk 0:02:55]}  gxf5 {[%clk 0:02:42]} 11. exf5 {[%clk 0:02:56]}  Bxf5 {[%clk 0:02:40]} 12. Qd2 {[%clk 0:02:57]}  Qf6 {[%clk 0:02:39]} 13. O-O-O {[%clk 0:02:46]}  Nd7 {[%clk 0:02:24]} 14. Nf3 {[%clk 0:02:33]}  e4 {[%clk 0:02:23]} 15. Nd4 {[%clk 0:02:33]}  Ne5 {[%clk 0:02:22]} 16. Rdg1 {[%clk 0:02:15]}  h5 {[%clk 0:01:43]} 17. Ncb5 {[%clk 0:01:25]}  a6 {[%clk 0:01:30]} 18. Nxf5 {[%clk 0:01:17]}  Qxf5 {[%clk 0:01:28]} 19. Nd4 {[%clk 0:01:16]}  Qf7 {[%clk 0:01:21]} 20. Bh6 {[%clk 0:00:57]}  Ng4 {[%clk 0:01:16]} 21. Bxg7 {[%clk 0:00:51]}  Qxg7 {[%clk 0:01:14]} 22. Bxg4 {[%clk 0:00:52]}  hxg4 {[%clk 0:01:13]} 23. Ne6 {[%clk 0:00:52]}  Qg6 {[%clk 0:01:06]} 24. h5 {[%clk 0:00:53]}  Qf5 {[%clk 0:00:57]} 25. Qh6 {[%clk 0:00:22]}  Rf7 {[%clk 0:00:49]} 26. Qg6+ {[%clk 0:00:22]}  Kh8 {[%clk 0:00:43]} 27. Rxg4 {[%clk 0:00:20]}  b5 {[%clk 0:00:14]} 28. Rf4 {[%clk 0:00:16]}  Qxg6 {[%clk 0:00:12]} 29. hxg6 {[%clk 0:00:16]}  Rxf4 {[%clk 0:00:10]} 30. Rxh7+ {[%clk 0:00:14]}  Kg8 {[%clk 0:00:10]} 31. Nxf4 {[%clk 0:00:13]}  bxc4 {[%clk 0:00:10]} 32. Nh5 {[%clk 0:00:10]}  Rb8 {[%clk 0:00:08]} 33. Nf6+ {[%clk 0:00:10]}  Kf8 {[%clk 0:00:07]} 34. Rf7# {[%clk 0:00:11]} 1-0


[Site "https://www.chess.com"]

[Event "Titled Tuesday Blitz November 29 Late 2022"]
[White "Suder, Jakub"]
[Black "Zhigalko, Sergei"]
[WhiteFideId "1195310"]
[BlackFideId "13502956"]
[WhiteElo "2243"]
[BlackElo "2662"]
[Result "0-1"]
[Round "08"]
[TimeControl "180+1"]
[Date "2022.11.30"]
[WhiteClock "0:00:01"]
[BlackClock "0:00:02"]

1. d4 {[%clk 0:02:59]}  Nf6 {[%clk 0:02:59]} 2. c4 {[%clk 0:03:00]}  e6 {[%clk 0:02:59]} 3. Nc3 {[%clk 0:03:00]}  Bb4 {[%clk 0:02:59]} 4. Qb3 {[%clk 0:03:01]}  a5 {[%clk 0:02:57]} 5. g3 {[%clk 0:02:59]}  O-O {[%clk 0:02:56]} 6. Bg2 {[%clk 0:02:59]}  Re8 {[%clk 0:02:53]} 7. Bd2 {[%clk 0:02:56]}  Nc6 {[%clk 0:02:46]} 8. Nf3 {[%clk 0:02:56]}  d5 {[%clk 0:02:38]} 9. cxd5 {[%clk 0:02:53]}  exd5 {[%clk 0:02:37]} 10. e3 {[%clk 0:02:30]}  Bg4 {[%clk 0:01:57]} 11. O-O {[%clk 0:02:27]}  Ne4 {[%clk 0:01:55]} 12. Qc2 {[%clk 0:02:15]}  Bxc3 {[%clk 0:01:37]} 13. Bxc3 {[%clk 0:02:12]}  Qf6 {[%clk 0:01:31]} 14. Nd2 {[%clk 0:02:10]}  Nxd2 {[%clk 0:01:24]} 15. Bxd2 {[%clk 0:02:02]}  Bf3 {[%clk 0:01:24]} 16. Bxf3 {[%clk 0:01:53]}  Qxf3 {[%clk 0:01:24]} 17. Qd1 {[%clk 0:01:53]}  Qf5 {[%clk 0:01:22]} 18. Qb1 {[%clk 0:01:52]}  Qf3 {[%clk 0:01:20]} 19. Qd1 {[%clk 0:01:51]}  Qf5 {[%clk 0:01:14]} 20. Qb1 {[%clk 0:01:51]}  Qh3 {[%clk 0:01:15]} 21. Qd3 {[%clk 0:01:45]}  Re6 {[%clk 0:01:10]} 22. f3 {[%clk 0:01:45]}  Ne7 {[%clk 0:01:01]} 23. e4 {[%clk 0:01:38]}  b6 {[%clk 0:00:42]} 24. Bg5 {[%clk 0:01:21]}  Ng6 {[%clk 0:00:23]} 25. e5 {[%clk 0:01:16]}  h6 {[%clk 0:00:23]} 26. Be3 {[%clk 0:01:14]}  c5 {[%clk 0:00:08]} 27. f4 {[%clk 0:01:12]}  Nh4 {[%clk 0:00:07]} 28. Rf2 {[%clk 0:00:58]}  c4 {[%clk 0:00:06]} 29. Qe2 {[%clk 0:00:50]}  Nf5 {[%clk 0:00:06]} 30. Rg2 {[%clk 0:00:46]}  h5 {[%clk 0:00:06]} 31. Bf2 {[%clk 0:00:41]}  Rd8 {[%clk 0:00:05]} 32. b3 {[%clk 0:00:37]}  b5 {[%clk 0:00:05]} 33. a4 {[%clk 0:00:34]}  bxa4 {[%clk 0:00:04]} 34. bxc4 {[%clk 0:00:33]}  dxc4 {[%clk 0:00:05]} 35. Qxc4 {[%clk 0:00:33]}  h4 {[%clk 0:00:04]} 36. g4 {[%clk 0:00:29]}  Ne7 {[%clk 0:00:04]} 37. Qxa4 {[%clk 0:00:25]}  Nd5 {[%clk 0:00:03]} 38. Ra3 {[%clk 0:00:18]}  Nc3 {[%clk 0:00:01]} 39. Qb3 {[%clk 0:00:19]}  Rc6 {[%clk 0:00:01]} 40. Kh1 {[%clk 0:00:06]}  Qf3 {[%clk 0:00:01]} 41. Kg1 {[%clk 0:00:01]}  h3 {[%clk 0:00:01]} 42. Rg3 {[%clk 0:00:01]}  Ne2+ {[%clk 0:00:02]} 0-1


[Site "https://www.chess.com"]

[Event "Titled Tuesday Blitz November 29 Late 2022"]
[White "Svane, Frederik"]
[Black "Quesada Perez, Yuniesky"]
[WhiteFideId "12923044"]
[BlackFideId "3504409"]
[WhiteElo "2466"]
[BlackElo "2599"]
[Result "0-1"]
[Round "08"]
[TimeControl "180+1"]
[Date "2022.11.30"]
[WhiteClock "0:00:01"]
[BlackClock "0:00:14"]

1. e4 {[%clk 0:03:00]}  e5 {[%clk 0:02:57]} 2. Bc4 {[%clk 0:03:01]}  Nf6 {[%clk 0:02:52]} 3. d3 {[%clk 0:03:01]}  Nc6 {[%clk 0:02:51]} 4. Nc3 {[%clk 0:02:59]}  Na5 {[%clk 0:02:51]} 5. Qf3 {[%clk 0:02:59]}  d6 {[%clk 0:02:46]} 6. Nge2 {[%clk 0:02:55]}  Nxc4 {[%clk 0:02:45]} 7. dxc4 {[%clk 0:02:56]}  Be6 {[%clk 0:02:41]} 8. b3 {[%clk 0:02:56]}  Be7 {[%clk 0:02:41]} 9. a4 {[%clk 0:02:54]}  O-O {[%clk 0:02:37]} 10. O-O {[%clk 0:02:55]}  c6 {[%clk 0:02:36]} 11. Ba3 {[%clk 0:02:54]}  Qa5 {[%clk 0:02:26]} 12. Rfd1 {[%clk 0:02:49]}  Rad8 {[%clk 0:02:25]} 13. h3 {[%clk 0:02:48]}  g6 {[%clk 0:02:16]} 14. Bxd6 {[%clk 0:02:27]}  Rxd6 {[%clk 0:02:14]} 15. Rxd6 {[%clk 0:02:26]}  Bxd6 {[%clk 0:02:14]} 16. Qxf6 {[%clk 0:02:27]}  Bb4 {[%clk 0:02:14]} 17. Na2 {[%clk 0:02:25]}  Bc5 {[%clk 0:02:14]} 18. Rd1 {[%clk 0:02:19]}  Qc7 {[%clk 0:02:12]} 19. Nac1 {[%clk 0:02:16]}  Be7 {[%clk 0:02:06]} 20. Qf3 {[%clk 0:02:16]}  b5 {[%clk 0:02:00]} 21. Qc3 {[%clk 0:01:54]}  bxa4 {[%clk 0:01:52]} 22. bxa4 {[%clk 0:01:55]}  Rb8 {[%clk 0:01:48]} 23. Nd3 {[%clk 0:01:47]}  f6 {[%clk 0:01:48]} 24. c5 {[%clk 0:01:46]}  Qb7 {[%clk 0:01:45]} 25. f4 {[%clk 0:01:44]}  exf4 {[%clk 0:01:36]} 26. Nexf4 {[%clk 0:01:37]}  Bf7 {[%clk 0:01:36]} 27. e5 {[%clk 0:01:37]}  fxe5 {[%clk 0:01:31]} 28. Qxe5 {[%clk 0:01:38]}  Bf8 {[%clk 0:01:24]} 29. Rf1 {[%clk 0:01:14]}  Re8 {[%clk 0:01:21]} 30. Qd4 {[%clk 0:01:15]}  Bg7 {[%clk 0:01:19]} 31. Qf2 {[%clk 0:01:15]}  Qd7 {[%clk 0:01:17]} 32. Kh1 {[%clk 0:01:13]}  Bd4 {[%clk 0:01:17]} 33. Qf3 {[%clk 0:01:13]}  Re3 {[%clk 0:01:15]} 34. Qd1 {[%clk 0:01:13]}  g5 {[%clk 0:01:12]} 35. c3 {[%clk 0:00:08]}  Bxc3 {[%clk 0:01:11]} 36. Qc1 {[%clk 0:00:05]}  Bd4 {[%clk 0:01:10]} 37. Rd1 {[%clk 0:00:02]}  gxf4 {[%clk 0:01:04]} 38. Nxf4 {[%clk 0:00:03]}  Re4 {[%clk 0:01:03]} 39. Qd2 {[%clk 0:00:03]}  Qf5 {[%clk 0:00:59]} 40. Nd3 {[%clk 0:00:03]}  Re3 {[%clk 0:00:43]} 41. Nf2 {[%clk 0:00:02]}  Qf4 {[%clk 0:00:25]} 42. Ng4 {[%clk 0:00:02]}  Rxh3+ {[%clk 0:00:22]} 43. gxh3 {[%clk 0:00:03]}  Bd5+ {[%clk 0:00:22]} 44. Qg2 {[%clk 0:00:03]}  Bxg2+ {[%clk 0:00:21]} 45. Kxg2 {[%clk 0:00:04]}  h5 {[%clk 0:00:18]} 46. Nh2 {[%clk 0:00:02]}  Qe4+ {[%clk 0:00:18]} 47. Kg3 {[%clk 0:00:01]}  Be5+ {[%clk 0:00:16]} 48. Kf2 {[%clk 0:00:01]}  Qc2+ {[%clk 0:00:15]} 49. Ke1 {[%clk 0:00:01]}  Bg3+ {[%clk 0:00:14]} 0-1


[Site "https://www.chess.com"]

[Event "Titled Tuesday Blitz November 29 Late 2022"]
[White "Sztokbant, Bernardo Vainzoff"]
[Black "Leitao, Rafael"]
[WhiteFideId "2115956"]
[BlackFideId "2101246"]
[WhiteElo "2228"]
[BlackElo "2609"]
[Result "0-1"]
[Round "08"]
[TimeControl "180+1"]
[Date "2022.11.30"]
[WhiteClock "0:00:01"]
[BlackClock "0:00:37"]

1. d4 {[%clk 0:03:00]}  Nf6 {[%clk 0:02:59]} 2. c4 {[%clk 0:03:00]}  e6 {[%clk 0:02:59]} 3. Nf3 {[%clk 0:03:00]}  Bb4+ {[%clk 0:02:59]} 4. Bd2 {[%clk 0:02:59]}  c5 {[%clk 0:02:56]} 5. g3 {[%clk 0:02:59]}  Nc6 {[%clk 0:02:56]} 6. Bg2 {[%clk 0:02:59]}  Qb6 {[%clk 0:02:56]} 7. O-O {[%clk 0:02:40]}  Bxd2 {[%clk 0:02:55]} 8. Nbxd2 {[%clk 0:02:35]}  cxd4 {[%clk 0:02:49]} 9. Nb3 {[%clk 0:02:22]}  e5 {[%clk 0:02:49]} 10. c5 {[%clk 0:02:14]}  Qc7 {[%clk 0:02:47]} 11. Re1 {[%clk 0:02:10]}  O-O {[%clk 0:02:12]} 12. e3 {[%clk 0:02:08]}  dxe3 {[%clk 0:02:11]} 13. Rxe3 {[%clk 0:02:07]}  Re8 {[%clk 0:01:46]} 14. Qe2 {[%clk 0:01:50]}  d5 {[%clk 0:01:42]} 15. cxd6 {[%clk 0:01:47]}  Qxd6 {[%clk 0:01:42]} 16. Rd1 {[%clk 0:01:42]}  Qc7 {[%clk 0:01:42]} 17. h3 {[%clk 0:01:33]}  Bf5 {[%clk 0:01:39]} 18. Nh4 {[%clk 0:01:11]}  Be6 {[%clk 0:01:39]} 19. Nc5 {[%clk 0:01:09]}  Nd4 {[%clk 0:01:39]} 20. Rxd4 {[%clk 0:00:58]}  exd4 {[%clk 0:01:40]} 21. Re5 {[%clk 0:00:36]}  Bd5 {[%clk 0:01:29]} 22. Nd3 {[%clk 0:00:21]}  Rxe5 {[%clk 0:01:24]} 23. Nxe5 {[%clk 0:00:21]}  Bxg2 {[%clk 0:01:22]} 24. Kxg2 {[%clk 0:00:18]}  Re8 {[%clk 0:01:22]} 25. f4 {[%clk 0:00:18]}  Nd5 {[%clk 0:01:20]} 26. Nhf3 {[%clk 0:00:10]}  f6 {[%clk 0:01:17]} 27. Qb5 {[%clk 0:00:10]}  Ne3+ {[%clk 0:01:12]} 28. Kf2 {[%clk 0:00:09]}  Qc2+ {[%clk 0:01:08]} 29. Ke1 {[%clk 0:00:09]}  Rc8 {[%clk 0:00:54]} 30. Nxd4 {[%clk 0:00:05]}  Qc1+ {[%clk 0:00:54]} 31. Ke2 {[%clk 0:00:05]}  fxe5 {[%clk 0:00:49]} 32. fxe5 {[%clk 0:00:04]}  Nc4 {[%clk 0:00:44]} 33. Qd5+ {[%clk 0:00:03]}  Kh8 {[%clk 0:00:43]} 34. Nf5 {[%clk 0:00:04]}  Qxb2+ {[%clk 0:00:42]} 35. Kf3 {[%clk 0:00:03]}  Qxe5 {[%clk 0:00:40]} 36. Qd7 {[%clk 0:00:01]}  Rf8 {[%clk 0:00:37]} 0-1


[Site "https://www.chess.com"]

[Event "Titled Tuesday Blitz November 29 Late 2022"]
[White "Tan, Ralph"]
[Black "Rios Escobar, Adan"]
[WhiteFideId "30966590"]
[BlackFideId "3403645"]
[WhiteElo "2059"]
[BlackElo "2306"]
[Result "1-0"]
[Round "08"]
[TimeControl "180+1"]
[Date "2022.11.30"]
[WhiteClock "0:00:19"]
[BlackClock "0:00:01"]

1. Nf3 {[%clk 0:03:00]}  Nf6 {[%clk 0:03:00]} 2. g3 {[%clk 0:03:01]}  g6 {[%clk 0:03:00]} 3. Bg2 {[%clk 0:03:01]}  Bg7 {[%clk 0:03:01]} 4. O-O {[%clk 0:03:01]}  c5 {[%clk 0:03:02]} 5. d4 {[%clk 0:03:02]}  cxd4 {[%clk 0:03:01]} 6. Nxd4 {[%clk 0:03:02]}  O-O {[%clk 0:03:02]} 7. c4 {[%clk 0:03:02]}  Nc6 {[%clk 0:03:02]} 8. Nc3 {[%clk 0:03:01]}  Qa5 {[%clk 0:03:02]} 9. Ncb5 {[%clk 0:02:14]}  a6 {[%clk 0:02:43]} 10. Bd2 {[%clk 0:02:12]}  Qb6 {[%clk 0:02:43]} 11. Nxc6 {[%clk 0:02:05]}  dxc6 {[%clk 0:02:27]} 12. Be3 {[%clk 0:01:59]}  c5 {[%clk 0:02:22]} 13. Nc3 {[%clk 0:01:58]}  Qxb2 {[%clk 0:02:12]} 14. Na4 {[%clk 0:01:55]}  Qe5 {[%clk 0:01:57]} 15. Rb1 {[%clk 0:01:49]}  Be6 {[%clk 0:01:41]} 16. Rxb7 {[%clk 0:01:41]}  Bxc4 {[%clk 0:01:35]} 17. Nb6 {[%clk 0:01:38]}  Bxa2 {[%clk 0:01:18]} 18. Nxa8 {[%clk 0:01:37]}  Rxa8 {[%clk 0:01:08]} 19. Rxe7 {[%clk 0:01:36]}  Qxe7 {[%clk 0:01:01]} 20. Bxa8 {[%clk 0:01:36]}  Ng4 {[%clk 0:00:56]} 21. Bf4 {[%clk 0:01:27]}  Bc4 {[%clk 0:00:46]} 22. Bf3 {[%clk 0:01:25]}  Ne5 {[%clk 0:00:43]} 23. Bxe5 {[%clk 0:01:24]}  Bxe5 {[%clk 0:00:44]} 24. Qc2 {[%clk 0:01:20]}  Qe6 {[%clk 0:00:43]} 25. Rc1 {[%clk 0:01:16]}  Bb5 {[%clk 0:00:36]} 26. Qxc5 {[%clk 0:01:14]}  Bb2 {[%clk 0:00:34]} 27. Qc8+ {[%clk 0:01:11]}  Qxc8 {[%clk 0:00:33]} 28. Rxc8+ {[%clk 0:01:12]}  Kg7 {[%clk 0:00:33]} 29. Ra8 {[%clk 0:01:10]}  Bc3 {[%clk 0:00:31]} 30. e3 {[%clk 0:01:06]}  a5 {[%clk 0:00:29]} 31. Rb8 {[%clk 0:01:04]}  Ba6 {[%clk 0:00:22]} 32. Bd1 {[%clk 0:00:58]}  Bb4 {[%clk 0:00:18]} 33. Bb3 {[%clk 0:00:55]}  f5 {[%clk 0:00:15]} 34. Rb6 {[%clk 0:00:53]}  Be2 {[%clk 0:00:14]} 35. h4 {[%clk 0:00:50]}  Bf3 {[%clk 0:00:12]} 36. Ra6 {[%clk 0:00:46]}  h6 {[%clk 0:00:08]} 37. Bc2 {[%clk 0:00:38]}  Be2 {[%clk 0:00:05]} 38. Ra7+ {[%clk 0:00:36]}  Kf6 {[%clk 0:00:05]} 39. Rh7 {[%clk 0:00:31]}  h5 {[%clk 0:00:04]} 40. Ra7 {[%clk 0:00:29]}  Ke5 {[%clk 0:00:03]} 41. Rb7 {[%clk 0:00:22]}  Kf6 {[%clk 0:00:02]} 42. Rb6+ {[%clk 0:00:22]}  Kg7 {[%clk 0:00:02]} 43. e4 {[%clk 0:00:20]}  f4 {[%clk 0:00:01]} 44. gxf4 {[%clk 0:00:19]}  Kh6 {[%clk 0:00:01]} 45. f5 {[%clk 0:00:19]} 1-0


[Site "https://www.chess.com"]

[Event "Titled Tuesday Blitz November 29 Late 2022"]
[White "Tanenbaum, Zachary"]
[Black "Aldokhin, Ivan"]
[WhiteFideId "2060850"]
[BlackFideId "24115720"]
[WhiteElo "2175"]
[BlackElo "2313"]
[Result "1-0"]
[Round "08"]
[TimeControl "180+1"]
[Date "2022.11.30"]
[WhiteClock "0:00:07"]
[BlackClock "0:00:02"]

1. e4 {[%clk 0:02:59]}  c5 {[%clk 0:02:59]} 2. Nf3 {[%clk 0:02:58]}  e6 {[%clk 0:03:00]} 3. d4 {[%clk 0:02:58]}  cxd4 {[%clk 0:03:00]} 4. Nxd4 {[%clk 0:02:59]}  a6 {[%clk 0:03:01]} 5. Bd3 {[%clk 0:02:59]}  Qc7 {[%clk 0:03:01]} 6. O-O {[%clk 0:02:58]}  Nf6 {[%clk 0:03:01]} 7. Nc3 {[%clk 0:02:58]}  d6 {[%clk 0:03:01]} 8. f4 {[%clk 0:02:56]}  Be7 {[%clk 0:03:00]} 9. Be3 {[%clk 0:02:56]}  Nbd7 {[%clk 0:02:56]} 10. Qf3 {[%clk 0:02:52]}  b5 {[%clk 0:02:31]} 11. a3 {[%clk 0:02:41]}  Bb7 {[%clk 0:02:30]} 12. Rae1 {[%clk 0:02:42]}  h6 {[%clk 0:02:23]} 13. Bf2 {[%clk 0:02:38]}  g5 {[%clk 0:02:20]} 14. f5 {[%clk 0:02:28]}  Ne5 {[%clk 0:02:16]} 15. Qe2 {[%clk 0:02:26]}  Bc8 {[%clk 0:01:52]} 16. fxe6 {[%clk 0:02:15]}  fxe6 {[%clk 0:01:50]} 17. Kh1 {[%clk 0:02:01]}  Bd7 {[%clk 0:01:40]} 18. Bg3 {[%clk 0:01:55]}  h5 {[%clk 0:01:28]} 19. Bxe5 {[%clk 0:01:06]}  dxe5 {[%clk 0:01:27]} 20. Nb3 {[%clk 0:01:02]}  h4 {[%clk 0:01:17]} 21. h3 {[%clk 0:01:02]}  Nh5 {[%clk 0:01:13]} 22. Kh2 {[%clk 0:00:54]}  Ng3 {[%clk 0:01:08]} 23. Qe3 {[%clk 0:00:52]}  Nxf1+ {[%clk 0:01:01]} 24. Rxf1 {[%clk 0:00:53]}  g4 {[%clk 0:00:44]} 25. hxg4 {[%clk 0:00:47]}  Bc6 {[%clk 0:00:44]} 26. Nc5 {[%clk 0:00:41]}  Bxc5 {[%clk 0:00:31]} 27. Qxc5 {[%clk 0:00:39]}  O-O-O {[%clk 0:00:22]} 28. a4 {[%clk 0:00:33]}  Bb7 {[%clk 0:00:18]} 29. Qa7 {[%clk 0:00:21]}  Qb8 {[%clk 0:00:05]} 30. Qe3 {[%clk 0:00:18]}  b4 {[%clk 0:00:04]} 31. Rf7 {[%clk 0:00:15]}  Qd6 {[%clk 0:00:02]} 32. Qa7 {[%clk 0:00:14]}  Rd7 {[%clk 0:00:03]} 33. Rxd7 {[%clk 0:00:11]}  Qxd7 {[%clk 0:00:03]} 34. Qc5+ {[%clk 0:00:10]}  Qc7 {[%clk 0:00:03]} 35. Qxb4 {[%clk 0:00:11]}  Qf7 {[%clk 0:00:04]} 36. Qd6 {[%clk 0:00:09]}  Qf4+ {[%clk 0:00:03]} 37. Kg1 {[%clk 0:00:09]}  Qe3+ {[%clk 0:00:02]} 38. Kf1 {[%clk 0:00:08]}  h3 {[%clk 0:00:02]} 39. Qxe6+ {[%clk 0:00:07]} 1-0


[Site "https://www.chess.com"]

[Event "Titled Tuesday Blitz November 29 Late 2022"]
[White "Zajic, Milan"]
[Black "Indjic, Aleksandar"]
[WhiteFideId "912336"]
[BlackFideId "911925"]
[WhiteElo "2445"]
[BlackElo "2592"]
[Result "0-1"]
[Round "08"]
[TimeControl "180+1"]
[Date "2022.11.30"]
[WhiteClock "0:00:02"]
[BlackClock "0:00:09"]

1. e4 {[%clk 0:03:00]}  c5 {[%clk 0:02:58]} 2. Nf3 {[%clk 0:03:00]}  e6 {[%clk 0:02:59]} 3. d4 {[%clk 0:03:00]}  cxd4 {[%clk 0:02:59]} 4. Nxd4 {[%clk 0:03:01]}  a6 {[%clk 0:03:00]} 5. c4 {[%clk 0:03:01]}  Nf6 {[%clk 0:03:00]} 6. Nc3 {[%clk 0:03:01]}  Qc7 {[%clk 0:03:00]} 7. a3 {[%clk 0:03:00]}  d6 {[%clk 0:02:59]} 8. Be3 {[%clk 0:03:00]}  Nbd7 {[%clk 0:02:59]} 9. Be2 {[%clk 0:03:00]}  h5 {[%clk 0:02:58]} 10. Rc1 {[%clk 0:02:58]}  b6 {[%clk 0:02:58]} 11. f3 {[%clk 0:02:53]}  Bb7 {[%clk 0:02:58]} 12. O-O {[%clk 0:02:53]}  Be7 {[%clk 0:02:58]} 13. b4 {[%clk 0:02:53]}  h4 {[%clk 0:02:57]} 14. Qd2 {[%clk 0:02:53]}  Rc8 {[%clk 0:02:47]} 15. Rfd1 {[%clk 0:02:48]}  Qb8 {[%clk 0:02:47]} 16. Bf2 {[%clk 0:02:41]}  h3 {[%clk 0:02:35]} 17. g3 {[%clk 0:02:41]}  O-O {[%clk 0:02:35]} 18. Nb3 {[%clk 0:02:32]}  Ne5 {[%clk 0:02:29]} 19. Na4 {[%clk 0:02:05]}  b5 {[%clk 0:02:27]} 20. cxb5 {[%clk 0:01:53]}  axb5 {[%clk 0:02:24]} 21. Nc3 {[%clk 0:01:50]}  d5 {[%clk 0:02:23]} 22. f4 {[%clk 0:01:41]}  Nc4 {[%clk 0:02:21]} 23. Bxc4 {[%clk 0:01:41]}  bxc4 {[%clk 0:02:05]} 24. Nc5 {[%clk 0:01:39]}  dxe4 {[%clk 0:02:05]} 25. Qe2 {[%clk 0:01:39]}  Bd5 {[%clk 0:02:00]} 26. N3xe4 {[%clk 0:01:35]}  Nxe4 {[%clk 0:01:56]} 27. Nxe4 {[%clk 0:01:34]}  Qa8 {[%clk 0:01:56]} 28. Re1 {[%clk 0:01:12]}  Qxa3 {[%clk 0:01:55]} 29. b5 {[%clk 0:01:09]}  Qa8 {[%clk 0:01:28]} 30. b6 {[%clk 0:01:00]}  Bb4 {[%clk 0:01:27]} 31. Nc3 {[%clk 0:00:59]}  Bf3 {[%clk 0:01:24]} 32. Qf1 {[%clk 0:00:51]}  Bg2 {[%clk 0:01:14]} 33. Qe2 {[%clk 0:00:51]}  Qc6 {[%clk 0:01:13]} 34. Qg4 {[%clk 0:00:29]}  Rcd8 {[%clk 0:00:35]} 35. f5 {[%clk 0:00:17]}  exf5 {[%clk 0:00:35]} 36. Qxf5 {[%clk 0:00:18]}  Rd3 {[%clk 0:00:35]} 37. Re3 {[%clk 0:00:13]}  Bxc3 {[%clk 0:00:31]} 38. Rxc3 {[%clk 0:00:13]}  Bf1 {[%clk 0:00:24]} 39. Qf3 {[%clk 0:00:10]}  Qxf3 {[%clk 0:00:10]} 40. Rxf3 {[%clk 0:00:11]}  Rd1 {[%clk 0:00:11]} 41. Bc5 {[%clk 0:00:11]}  Be2+ {[%clk 0:00:10]} 42. Kf2 {[%clk 0:00:12]}  Bxf3 {[%clk 0:00:10]} 43. Bxf8 {[%clk 0:00:11]}  Bd5 {[%clk 0:00:10]} 44. Bc5 {[%clk 0:00:02]}  Rd2+ {[%clk 0:00:10]} 45. Ke3 {[%clk 0:00:02]}  Rxh2 {[%clk 0:00:10]} 46. Ra3 {[%clk 0:00:02]}  Rb2 {[%clk 0:00:09]} 47. Ra8+ {[%clk 0:00:01]}  Kh7 {[%clk 0:00:10]} 48. b7 {[%clk 0:00:02]}  h2 {[%clk 0:00:09]} 49. b8=Q {[%clk 0:00:01]}  Rxb8 {[%clk 0:00:09]} 50. Rxb8 {[%clk 0:00:02]}  h1=Q {[%clk 0:00:09]} 0-1


[Site "https://www.chess.com"]

[Event "Titled Tuesday Blitz November 29 Late 2022"]
[White "thornleaf"]
[Black "Prohorov, Olexandr"]
[BlackFideId "14105578"]
[WhiteElo "2215"]
[BlackElo "1993"]
[Result "1/2-1/2"]
[Round "08"]
[TimeControl "180+1"]
[Date "2022.11.30"]
[WhiteClock "0:00:29"]
[BlackClock "0:00:27"]

1. d4 {[%clk 0:03:00]}  Nf6 {[%clk 0:02:53]} 2. Nf3 {[%clk 0:02:59]}  e6 {[%clk 0:02:51]} 3. Bf4 {[%clk 0:02:58]}  c5 {[%clk 0:02:44]} 4. e3 {[%clk 0:02:58]}  b6 {[%clk 0:02:44]} 5. Bd3 {[%clk 0:02:58]}  Ba6 {[%clk 0:02:42]} 6. Bxa6 {[%clk 0:02:56]}  Nxa6 {[%clk 0:02:41]} 7. c3 {[%clk 0:02:56]}  d6 {[%clk 0:02:38]} 8. O-O {[%clk 0:02:55]}  Be7 {[%clk 0:02:37]} 9. Nbd2 {[%clk 0:02:56]}  O-O {[%clk 0:02:37]} 10. h3 {[%clk 0:02:56]}  Qd7 {[%clk 0:02:33]} 11. Qe2 {[%clk 0:02:56]}  Qb7 {[%clk 0:02:33]} 12. e4 {[%clk 0:02:52]}  cxd4 {[%clk 0:02:33]} 13. cxd4 {[%clk 0:02:51]}  Rac8 {[%clk 0:02:32]} 14. Rac1 {[%clk 0:02:48]}  d5 {[%clk 0:02:31]} 15. e5 {[%clk 0:02:43]}  Ne4 {[%clk 0:02:31]} 16. Nxe4 {[%clk 0:02:37]}  dxe4 {[%clk 0:02:31]} 17. Nd2 {[%clk 0:02:37]}  Rfd8 {[%clk 0:02:27]} 18. Rxc8 {[%clk 0:02:27]}  Qxc8 {[%clk 0:02:24]} 19. Qxe4 {[%clk 0:02:17]}  Nb4 {[%clk 0:02:19]} 20. a3 {[%clk 0:02:09]}  Nd5 {[%clk 0:02:12]} 21. Nf3 {[%clk 0:02:09]}  Qc4 {[%clk 0:02:09]} 22. Be3 {[%clk 0:01:58]}  Qb3 {[%clk 0:02:08]} 23. Rb1 {[%clk 0:01:46]}  b5 {[%clk 0:01:44]} 24. Ne1 {[%clk 0:01:33]}  b4 {[%clk 0:01:33]} 25. Qc2 {[%clk 0:01:10]}  Qxc2 {[%clk 0:01:27]} 26. Nxc2 {[%clk 0:01:09]}  a5 {[%clk 0:01:22]} 27. axb4 {[%clk 0:01:05]}  axb4 {[%clk 0:01:22]} 28. Ne1 {[%clk 0:01:05]}  Rc8 {[%clk 0:01:10]} 29. Kf1 {[%clk 0:01:04]}  b3 {[%clk 0:01:05]} 30. Ke2 {[%clk 0:01:03]}  f6 {[%clk 0:00:58]} 31. exf6 {[%clk 0:01:01]}  gxf6 {[%clk 0:00:58]} 32. Rc1 {[%clk 0:01:01]}  Ra8 {[%clk 0:00:56]} 33. Nd3 {[%clk 0:00:58]}  Ra2 {[%clk 0:00:54]} 34. Rc8+ {[%clk 0:00:54]}  Kf7 {[%clk 0:00:52]} 35. Bc1 {[%clk 0:00:54]}  Bd6 {[%clk 0:00:35]} 36. Rd8 {[%clk 0:00:47]}  Be7 {[%clk 0:00:29]} 37. Rb8 {[%clk 0:00:46]}  Ra1 {[%clk 0:00:27]} 38. Rxb3 {[%clk 0:00:44]}  Bd6 {[%clk 0:00:28]} 39. g3 {[%clk 0:00:40]}  Kg6 {[%clk 0:00:29]} 40. h4 {[%clk 0:00:40]}  h5 {[%clk 0:00:29]} 41. Rb7 {[%clk 0:00:37]}  Kf5 {[%clk 0:00:27]} 42. Rh7 {[%clk 0:00:31]}  Kg6 {[%clk 0:00:27]} 43. Rb7 {[%clk 0:00:30]}  Kf5 {[%clk 0:00:27]} 44. Rh7 {[%clk 0:00:28]}  Kg6 {[%clk 0:00:27]} 45. Rb7 {[%clk 0:00:29]} 1/2-1/2


[Site "https://www.chess.com"]